Workbook

Sheet עלויות שיפוץ חדר האמבטיה
B1: גליון עבודה של עלויות שיפוץ חדר האמבטיה
B2: הערה: עמודות ההפרש בטבלה מציינות אם הסכומים בפועל חרגו מהסכומים המשוערים. המספרים האדומים מציינים סכומים שחרגו מהסכומים המשוערים (ערכים שליליים), והמספרים השחורים מציינים סכומים נמוכים יותר מהסכומים המשוערים (ערכים חיוביים).
E3: עלות מפורטת (₪) | H3: עלות כוללת (₪)
B4: אזור | C4: פריטים | D4: כמות | E4: משוערת | F4: בפועל | G4: הפרש | H4: משוערת | I4: בפועל | J4: הפרש
B5: אמבטיה/מקלחת | C5: אמבטיה, ברזל יצוק, 1.5 מ', סטנדרטית | D5: 1 | E5: ₪ 250.00 | F5: =RANDBETWEEN(E5+2,E5+20) -> ₪ 259.00 | G5: =IFERROR(משוערות[[#This Row],[משוערת]]-משוערות[[#This Row],[בפועל]], "") -> ₪ -9.00 | H5: =IFERROR(משוערות[[#This Row],[כמות]]*משוערות[[#This Row],[משוערת]], "") -> ₪ 250.00 | I5: =IFERROR(משוערות[[#This Row],[כמות]]*משוערות[[#This Row],[בפועל]], "") -> ₪ 259.00 | J5: =IFERROR(משוערות[[#This Row],[משוערת ]]-משוערות[[#This Row],[בפועל ]], "") -> ₪ -9.00
B6: אמבטיה/מקלחת | C6: דלתות מקלחון, עם צירים, סטנדרטיות | D6: 1 | E6: ₪ 200.00 | F6: ₪ 215.00 | G6: =IFERROR(משוערות[[#This Row],[משוערת]]-משוערות[[#This Row],[בפועל]], "") -> ₪ -15.00 | H6: =IFERROR(משוערות[[#This Row],[כמות]]*משוערות[[#This Row],[משוערת]], "") -> ₪ 200.00 | I6: =IFERROR(משוערות[[#This Row],[כמות]]*משוערות[[#This Row],[בפועל]], "") -> ₪ 215.00 | J6: =IFERROR(משוערות[[#This Row],[משוערת ]]-משוערות[[#This Row],[בפועל ]], "") -> ₪ -15.00
B7: אמבטיה/מקלחת | C7: ראש מקלחת, סטנדרטי | D7: 1 | E7: ₪ 50.00 | F7: ₪ 70.00 | G7: =IFERROR(משוערות[[#This Row],[משוערת]]-משוערות[[#This Row],[בפועל]], "") -> ₪ -20.00 | H7: =IFERROR(משוערות[[#This Row],[כמות]]*משוערות[[#This Row],[משוערת]], "") -> ₪ 50.00 | I7: =IFERROR(משוערות[[#This Row],[כמות]]*משוערות[[#This Row],[בפועל]], "") -> ₪ 70.00 | J7: =IFERROR(משוערות[[#This Row],[משוערת ]]-משוערות[[#This Row],[בפועל ]], "") -> ₪ -20.00
B8: אמבטיה/מקלחת | C8: חיפוי קיר, סטנדרטי | D8: 1 | E8: ₪ 200.00 | F8: ₪ 207.00 | G8: =IFERROR(משוערות[[#This Row],[משוערת]]-משוערות[[#This Row],[בפועל]], "") -> ₪ -7.00 | H8: =IFERROR(משוערות[[#This Row],[כמות]]*משוערות[[#This Row],[משוערת]], "") -> ₪ 200.00 | I8: =IFERROR(משוערות[[#This Row],[כמות]]*משוערות[[#This Row],[בפועל]], "") -> ₪ 207.00 | J8: =IFERROR(משוערות[[#This Row],[משוערת ]]-משוערות[[#This Row],[בפועל ]], "") -> ₪ -7.00
B9: ארונות | C9: ארון אמבטיה, 60 ס"מ, יוקרתי | D9: 1 | E9: ₪ 200.00 | F9: ₪ 205.00 | G9: =IFERROR(משוערות[[#This Row],[משוערת]]-משוערות[[#This Row],[בפועל]], "") -> ₪ -5.00 | H9: =IFERROR(משוערות[[#This Row],[כמות]]*משוערות[[#This Row],[משוערת]], "") -> ₪ 200.00 | I9: =IFERROR(משוערות[[#This Row],[כמות]]*משוערות[[#This Row],[בפועל]], "") -> ₪ 205.00 | J9: =IFERROR(משוערות[[#This Row],[משוערת ]]-משוערות[[#This Row],[בפועל ]], "") -> ₪ -5.00
B10: ארונות | C10: ארונית אמבטיה, 76 ס"מ, סטנדרטית | D10: 2 | E10: ₪ 100.00 | F10: ₪ 118.00 | G10: =IFERROR(משוערות[[#This Row],[משוערת]]-משוערות[[#This Row],[בפועל]], "") -> ₪ -18.00 | H10: =IFERROR(משוערות[[#This Row],[כמות]]*משוערות[[#This Row],[משוערת]], "") -> ₪ 200.00 | I10: =IFERROR(משוערות[[#This Row],[כמות]]*משוערות[[#This Row],[בפועל]], "") -> ₪ 236.00 | J10: =IFERROR(משוערות[[#This Row],[משוערת ]]-משוערות[[#This Row],[בפועל ]], "") -> ₪ -36.00
B11: משטחי שיש | C11: אריחי חרסינה, יוקרתיים (כמות במ"ר) | D11: 5 | E11: ₪ 22.50 | F11: ₪ 29.00 | G11: =IFERROR(משוערות[[#This Row],[משוערת]]-משוערות[[#This Row],[בפועל]], "") -> ₪ -6.50 | H11: =IFERROR(משוערות[[#This Row],[כמות]]*משוערות[[#This Row],[משוערת]], "") -> ₪ 112.50 | I11: =IFERROR(משוערות[[#This Row],[כמות]]*משוערות[[#This Row],[בפועל]], "") -> ₪ 145.00 | J11: =IFERROR(משוערות[[#This Row],[משוערת ]]-משוערות[[#This Row],[בפועל ]], "") -> ₪ -32.50
B12: ברזים | C12: ברז, אמבטיה, סטנדרטי | D12: 1 | E12: ₪ 90.00 | F12: ₪ 104.00 | G12: =IFERROR(משוערות[[#This Row],[משוערת]]-משוערות[[#This Row],[בפועל]], "") -> ₪ -14.00 | H12: =IFERROR(משוערות[[#This Row],[כמות]]*משוערות[[#This Row],[משוערת]], "") -> ₪ 90.00 | I12: =IFERROR(משוערות[[#This Row],[כמות]]*משוערות[[#This Row],[בפועל]], "") -> ₪ 104.00 | J12: =IFERROR(משוערות[[#This Row],[משוערת ]]-משוערות[[#This Row],[בפועל ]], "") -> ₪ -14.00
B13: ברזים | C13: ברז, מקלחת, ידית אחת, סטנדרטי | D13: 1 | E13: ₪ 115.00 | F13: ₪ 119.00 | G13: =IFERROR(משוערות[[#This Row],[משוערת]]-משוערות[[#This Row],[בפועל]], "") -> ₪ -4.00 | H13: =IFERROR(משוערות[[#This Row],[כמות]]*משוערות[[#This Row],[משוערת]], "") -> ₪ 115.00 | I13: =IFERROR(משוערות[[#This Row],[כמות]]*משוערות[[#This Row],[בפועל]], "") -> ₪ 119.00 | J13: =IFERROR(משוערות[[#This Row],[משוערת ]]-משוערות[[#This Row],[בפועל ]], "") -> ₪ -4.00
B14: ברזים | C14: ברז, כיור, סטנדרטי | D14: 1 | E14: ₪ 95.00 | F14: ₪ 114.00 | G14: =IFERROR(משוערות[[#This Row],[משוערת]]-משוערות[[#This Row],[בפועל]], "") -> ₪ -19.00 | H14: =IFERROR(משוערות[[#This Row],[כמות]]*משוערות[[#This Row],[משוערת]], "") -> ₪ 95.00 | I14: =IFERROR(משוערות[[#This Row],[כמות]]*משוערות[[#This Row],[בפועל]], "") -> ₪ 114.00 | J14: =IFERROR(משוערות[[#This Row],[משוערת ]]-משוערות[[#This Row],[בפועל ]], "") -> ₪ -19.00
B15: ריצוף | C15: אריחי קרמיקה, סטנדרטיים (כמות במ"ר) | D15: 35 | E15: ₪ 12.00 | F15: ₪ 32.00 | G15: =IFERROR(משוערות[[#This Row],[משוערת]]-משוערות[[#This Row],[בפועל]], "") -> ₪ -20.00 | H15: =IFERROR(משוערות[[#This Row],[כמות]]*משוערות[[#This Row],[משוערת]], "") -> ₪ 420.00 | I15: =IFERROR(משוערות[[#This Row],[כמות]]*משוערות[[#This Row],[בפועל]], "") -> ₪ 1,120.00 | J15: =IFERROR(משוערות[[#This Row],[משוערת ]]-משוערות[[#This Row],[בפועל ]], "") -> ₪ -700.00
B16: מוצרי מתכת | C16: מתלה מגבות, סטנדרטי | D16: 2 | E16: ₪ 15.00 | F16: ₪ 26.00 | G16: =IFERROR(משוערות[[#This Row],[משוערת]]-משוערות[[#This Row],[בפועל]], "") -> ₪ -11.00 | H16: =IFERROR(משוערות[[#This Row],[כמות]]*משוערות[[#This Row],[משוערת]], "") -> ₪ 30.00 | I16: =IFERROR(משוערות[[#This Row],[כמות]]*משוערות[[#This Row],[בפועל]], "") -> ₪ 52.00 | J16: =IFERROR(משוערות[[#This Row],[משוערת ]]-משוערות[[#This Row],[בפועל ]], "") -> ₪ -22.00
B17: מוצרי מתכת | C17: מחזיק נייר טואלט | D17: 1 | E17: ₪ 10.00 | F17: ₪ 15.00 | G17: =IFERROR(משוערות[[#This Row],[משוערת]]-משוערות[[#This Row],[בפועל]], "") -> ₪ -5.00 | H17: =IFERROR(משוערות[[#This Row],[כמות]]*משוערות[[#This Row],[משוערת]], "") -> ₪ 10.00 | I17: =IFERROR(משוערות[[#This Row],[כמות]]*משוערות[[#This Row],[בפועל]], "") -> ₪ 15.00 | J17: =IFERROR(משוערות[[#This Row],[משוערת ]]-משוערות[[#This Row],[בפועל ]], "") -> ₪ -5.00
B18: תאורה | C18: גופי תאורה שקועים, סטנדרטיים | D18: 4 | E18: ₪ 25.00 | F18: ₪ 42.00 | G18: =IFERROR(משוערות[[#This Row],[משוערת]]-משוערות[[#This Row],[בפועל]], "") -> ₪ -17.00 | H18: =IFERROR(משוערות[[#This Row],[כמות]]*משוערות[[#This Row],[משוערת]], "") -> ₪ 100.00 | I18: =IFERROR(משוערות[[#This Row],[כמות]]*משוערות[[#This Row],[בפועל]], "") -> ₪ 168.00 | J18: =IFERROR(משוערות[[#This Row],[משוערת ]]-משוערות[[#This Row],[בפועל ]], "") -> ₪ -68.00
B19: כיורים | C19: אסלה, סטנדרטית | D19: 2 | E19: ₪ 60.00 | F19: ₪ 67.00 | G19: =IFERROR(משוערות[[#This Row],[משוערת]]-משוערות[[#This Row],[בפועל]], "") -> ₪ -7.00 | H19: =IFERROR(משוערות[[#This Row],[כמות]]*משוערות[[#This Row],[משוערת]], "") -> ₪ 120.00 | I19: =IFERROR(משוערות[[#This Row],[כמות]]*משוערות[[#This Row],[בפועל]], "") -> ₪ 134.00 | J19: =IFERROR(משוערות[[#This Row],[משוערת ]]-משוערות[[#This Row],[בפועל ]], "") -> ₪ -14.00
B20: אחר | D20: 1 | E20: ₪ 20.00 | F20: ₪ 33.00 | G20: =IFERROR(משוערות[[#This Row],[משוערת]]-משוערות[[#This Row],[בפועל]], "") -> ₪ -13.00 | H20: =IFERROR(משוערות[[#This Row],[כמות]]*משוערות[[#This Row],[משוערת]], "") -> ₪ 20.00 | I20: =IFERROR(משוערות[[#This Row],[כמות]]*משוערות[[#This Row],[בפועל]], "") -> ₪ 33.00 | J20: =IFERROR(משוערות[[#This Row],[משוערת ]]-משוערות[[#This Row],[בפועל ]], "") -> ₪ -13.00
B21: סכום ביניים | E21: =SUBTOTAL(109,משוערות[משוערת]) -> ₪ 1,464.50 | F21: =SUBTOTAL(109,משוערות[בפועל]) -> ₪ 1,655.00 | G21: =SUBTOTAL(109,משוערות[הפרש]) -> ₪ -190.50 | H21: =SUBTOTAL(109,משוערות[[משוערת ]]) -> ₪ 2,212.50 | I21: =SUBTOTAL(109,משוערות[[בפועל ]]) -> ₪ 3,196.00 | J21: =SUBTOTAL(109,משוערות[[הפרש ]]) -> ₪ -983.50
B23: עלויות לא צפויות (הוסף 30% מהעלויות המשוערות) | E23: =IFERROR(משוערות[[#Totals],[משוערת]]*0.3, "") -> ₪ 439.35 | H23: =IFERROR(משוערות[[#Totals],[משוערת ]]*0.3, "") -> ₪ 663.75
B24: עלויות כוללות | E24: =IFERROR(SUM(E21:E21), "") -> ₪ 1,464.50 | H24: =IFERROR(SUM(משוערות[[#Totals],[משוערת ]],Overage), "") -> ₪ 2,876.25
